fUSD/lending_fUSD_20250606
["ID","MTS","AMOUNT","RATE_DAILY","PERIOD"]
[364724221,1749220251185,-9203.34,0.0003028,7]
[364724223,1749220251194,-9203.34,0.0003028,7]
[364724225,1749220251204,-9203.34,0.0003028,7]
[364724227,1749220251213,-9203.34,0.0003028,7]
[364724229,1749220251223,-9203.34,0.0003028,7]
[364724231,1749220251232,-150.0,0.00030281,7]
[364724233,1749220251242,-165.885412,0.00030282,7]
[364724236,1749220251252,-165.885412,0.00030282,7]
[364724238,1749220251262,-296.887823,0.00030282,7]
[364724240,1749220251272,-296.887823,0.00030282,7]
[364724242,1749220251281,-150.0,0.00030283,7]
[364724244,1749220251291,-150.0,0.00030286,7]
[364724246,1749220251301,-150.0,0.00030289,7]
[364724248,1749220251311,-796.0,0.00030289,2]
[364724250,1749220251321,-150.0,0.00030289,2]
[364724252,1749220251331,-239.4279877,0.00030293,7]
[364724254,1749220251341,-186.88884126,0.00030293,7]
[364724256,1749220251351,-151.0,0.000303,7]
[364724258,1749220251362,-151.0,0.000303,7]
[364724260,1749220251376,-151.0,0.000303,7]
[364724262,1749220251386,-151.0,0.000303,7]
[364724264,1749220251397,-151.0,0.000303,7]
[364724266,1749220251407,-234.971268,0.000303,7]
[364724298,1749220251694,-234.971268,0.000303,7]
[364724300,1749220251704,-151.0,0.000303,7]
[364724302,1749220251713,-162.52378398,0.00030303,2]
[364724304,1749220251722,-239.4279877,0.00030307,7]
[364724306,1749220251732,-186.88884126,0.00030307,7]
[364724308,1749220251740,-30461.1635666,0.00030307,2]
[364724310,1749220251749,-87740.535357,0.00030307,2]
[364724312,1749220251759,-38863.8463199,0.00030307,2]
[364724314,1749220251768,-223.87899845,0.00030307,7]
[364724317,1749220251778,-151.0,0.00030307,7]
[364724319,1749220251788,-160.122674,0.00030307,7]
[364724321,1749220251797,-151.0,0.00030307,7]
[364724323,1749220251807,-191.80958,0.00030307,7]
[364724325,1749220251816,-150.0,0.00030308,7]
[364724327,1749220251825,-150.0,0.00030309,7]
[364724329,1749220251834,-150.0,0.00030309,7]
[364724331,1749220251844,-955.21187,0.0003031,2]
[364724333,1749220251853,-150.0,0.00030314,7]
[364724335,1749220251863,-150.0,0.00030316,2]
[364724337,1749220251872,-239.4279877,0.0003032,7]
[364724339,1749220251882,-186.88884126,0.0003032,7]
[364724341,1749220251891,-150.0,0.00030321,2]
[364724343,1749220251901,-6539.273502,0.00030325,7]
[364724345,1749220251912,-151.0,0.00030325,7]
[364724347,1749220251922,-151.0,0.00030325,7]
[364724349,1749220251931,-151.0,0.00030325,7]
[364724351,1749220251942,-151.0,0.00030325,7]
[364724353,1749220251952,-151.0,0.00030328,7]
[364724355,1749220251961,-151.0,0.00030328,7]
[364724357,1749220251970,-151.0,0.00030328,7]
[364724359,1749220251980,-151.0,0.00030328,7]
[364724361,1749220251990,-151.0,0.00030328,7]
[364724363,1749220252000,-151.0,0.00030328,7]
[364724365,1749220252009,-151.0,0.00030328,7]
[364724367,1749220252019,-151.0,0.00030328,7]
[364724369,1749220252028,-155.137648,0.00030328,7]
[364724371,1749220252038,-151.0,0.00030328,7]
[364724373,1749220252047,-151.0,0.00030328,7]
[364724375,1749220252057,-151.0,0.00030328,7]
[364724377,1749220252066,-151.0,0.00030328,7]
[364724379,1749220252075,-151.0,0.00030328,7]
[364724381,1749220252085,-151.0,0.00030328,7]
[364724383,1749220252095,-210.982028,0.00030328,7]
[364724385,1749220252104,-210.982028,0.00030328,7]
[364724387,1749220252114,-210.982028,0.00030328,7]
[364724389,1749220252123,-210.982028,0.00030328,7]
[364724391,1749220252133,-151.0,0.00030328,7]
[364724393,1749220252142,-151.0,0.00030328,7]
[364724395,1749220252151,-151.0,0.00030328,7]
[364724397,1749220252160,-151.0,0.00030328,7]
[364724399,1749220252170,-151.0,0.00030328,7]
[364724401,1749220252180,-151.0,0.00030328,7]
[364724403,1749220252189,-151.0,0.00030328,7]
[364724405,1749220252199,-151.0,0.00030328,7]
[364724407,1749220252209,-151.0,0.00030328,7]
[364724409,1749220252219,-151.0,0.00030328,7]
[364724411,1749220252228,-164.396546,0.00030328,7]
[364724413,1749220252238,-164.396546,0.00030328,7]
[364724415,1749220252248,-151.0,0.00030328,7]
[364724417,1749220252257,-164.396546,0.00030328,7]
[364724419,1749220252267,-164.396546,0.00030328,7]
[364724421,1749220252276,-151.0,0.00030328,7]
[364724423,1749220252286,-151.0,0.00030328,7]
[364724425,1749220252295,-151.0,0.00030328,7]
[364724427,1749220252305,-151.0,0.00030328,7]
[364724429,1749220252315,-152.060502,0.00030328,7]
[364724431,1749220252325,-151.0,0.00030328,7]
[364724433,1749220252334,-151.0,0.00030328,7]
[364724435,1749220252344,-151.46824,0.00030328,7]
[364724437,1749220252354,-274.19169,0.00030328,7]
[364724439,1749220252365,-151.0,0.00030328,7]
[364724441,1749220252380,-151.0,0.00030328,7]
[364724443,1749220252389,-151.0,0.00030328,7]
[364724445,1749220252399,-151.0,0.00030328,7]
[364724447,1749220252409,-151.0,0.00030328,7]
[364724449,1749220252419,-151.0,0.00030328,7]
[364724451,1749220252429,-151.0,0.00030328,7]
[364724453,1749220252439,-151.0,0.00030328,7]
[364724455,1749220252451,-173.795224,0.00030328,7]
[364724457,1749220252461,-173.795224,0.00030328,7]
[364724459,1749220252471,-173.795224,0.00030328,7]
[364724461,1749220252481,-173.795224,0.00030328,7]
[364724463,1749220252491,-151.0,0.00030328,7]
[364724465,1749220252501,-151.0,0.00030328,7]
[364724467,1749220252510,-151.0,0.00030328,7]
[364724469,1749220252519,-151.0,0.00030328,7]
[364724471,1749220252528,-151.0,0.00030328,7]
[364724473,1749220252538,-165.046603,0.00030328,7]
[364724475,1749220252547,-151.0,0.00030328,7]
[364724477,1749220252557,-151.0,0.00030328,7]
[364724479,1749220252567,-165.046603,0.00030328,7]
[364724481,1749220252576,-165.046603,0.00030328,7]
[364724483,1749220252585,-151.0,0.00030328,7]
[364724485,1749220252595,-165.046603,0.00030328,7]
[364724487,1749220252604,-238.937422,0.00030328,7]
[364724489,1749220252614,-151.0,0.00030328,7]
[364724491,1749220252624,-151.0,0.00030328,7]
[364724493,1749220252633,-151.0,0.00030328,7]
[364724495,1749220252643,-151.0,0.00030328,7]
[364724498,1749220252654,-220.938559,0.00030328,7]
[364724500,1749220252663,-178.626492,0.00030328,7]
[364724502,1749220252672,-178.626492,0.00030328,7]
[364724504,1749220252681,-151.0,0.00030328,7]
[364724506,1749220252691,-178.626492,0.00030328,7]
[364724508,1749220252700,-178.626492,0.00030328,7]
[364724510,1749220252710,-1360.080029,0.00030328,7]
[364724512,1749220252719,-1360.080029,0.00030328,7]
[364724514,1749220252728,-1360.080029,0.00030328,7]
[364724515,1749220252738,-1360.080029,0.00030328,7]
[364724518,1749220252747,-151.0,0.00030328,7]
[364724520,1749220252757,-151.0,0.00030328,7]
[364724522,1749220252768,-151.0,0.00030328,7]
[364724524,1749220252778,-151.0,0.00030328,7]
[364724526,1749220252787,-151.0,0.00030328,7]
[364724528,1749220252796,-151.0,0.00030328,7]
[364724529,1749220252806,-2222.878919,0.00030328,7]
[364724532,1749220252815,-151.0,0.00030328,7]
[364724533,1749220252824,-151.0,0.00030328,7]
[364724536,1749220252833,-151.572642,0.00030328,7]
[364724538,1749220252842,-151.0,0.00030328,7]
[364724540,1749220252851,-151.0,0.00030328,7]
[364724542,1749220252860,-151.0,0.00030328,7]
[364724543,1749220252870,-154.14598,0.00030328,7]
[364724546,1749220252879,-151.0,0.00030328,7]
[364724548,1749220252888,-2069.069336,0.00030328,7]
[364724550,1749220252898,-151.0,0.00030328,7]
[364724552,1749220252907,-151.0,0.00030328,7]
[364724554,1749220252918,-151.0,0.00030328,7]
[364724556,1749220252927,-158.04033,0.00030328,7]
[364724558,1749220252936,-151.0,0.00030328,7]
[364724560,1749220252945,-245.525784,0.00030328,7]
[364724562,1749220252954,-151.0,0.00030328,7]
[364724564,1749220252964,-299.773786,0.00030328,7]
[364724566,1749220252975,-151.0,0.00030328,7]
[364724568,1749220252985,-178.504092,0.00030328,7]
[364724570,1749220252995,-151.0,0.00030328,7]
[364724572,1749220253004,-151.254161,0.00030328,7]
[364724574,1749220253014,-151.0,0.00030328,7]
[364724576,1749220253023,-151.0,0.00030328,7]
[364724578,1749220253032,-151.0,0.00030328,7]
[364724580,1749220253042,-151.0,0.00030328,7]
[364724582,1749220253051,-151.0,0.00030328,7]
[364724584,1749220253061,-242.735552,0.00030328,7]
[364724586,1749220253070,-242.735552,0.00030328,7]
[364724588,1749220253080,-242.735552,0.00030328,7]
[364724590,1749220253090,-242.735552,0.00030328,7]
[364724592,1749220253100,-151.0,0.00030328,7]
[364724594,1749220253108,-151.0,0.00030328,7]
[364724596,1749220253118,-162.41710518,0.00030328,7]
[364724598,1749220253127,-151.0,0.00030328,7]
[364724600,1749220253136,-151.0,0.00030328,7]
[364724602,1749220253145,-151.0,0.00030328,7]
[364724603,1749220253155,-839.7152,0.00030328,7]
[364724604,1749220253166,-839.7152,0.00030328,7]
[364724605,1749220253176,-839.7152,0.00030328,7]
[364724606,1749220253186,-839.7152,0.00030328,7]
[364724607,1749220253196,-151.0,0.00030328,7]
[364724608,1749220253206,-151.0,0.00030328,7]
[364724609,1749220253215,-480.0,0.00030328,7]
[364724610,1749220253225,-480.0,0.00030328,7]
[364724611,1749220253234,-480.0,0.00030328,7]
[364724613,1749220253244,-480.0,0.00030328,7]
[364724615,1749220253253,-480.0,0.00030328,7]
[364724617,1749220253263,-480.0,0.00030328,7]
[364724619,1749220253273,-250.0,0.00030328,7]
[364724621,1749220253283,-480.0,0.00030328,7]
[364724623,1749220253292,-480.0,0.00030328,7]
[364724625,1749220253302,-480.0,0.00030328,7]
[364724627,1749220253312,-480.0,0.00030328,7]
[364724629,1749220253321,-480.0,0.00030328,7]
[364724631,1749220253330,-617.81,0.00030328,7]
[364724633,1749220253340,-480.0,0.00030328,7]
[364724635,1749220253349,-234.971268,0.00030328,7]
[364724637,1749220253359,-234.971268,0.00030328,7]
[364724639,1749220253373,-480.0,0.00030328,7]
[364724641,1749220253382,-495.17357435,0.00030328,7]
[364724643,1749220253391,-480.0,0.00030328,7]
[364724645,1749220253401,-480.0,0.00030328,7]
[364724647,1749220253412,-480.0,0.00030328,7]
[364724649,1749220253423,-480.0,0.00030328,7]
[364724651,1749220253432,-480.0,0.00030328,7]
[364724653,1749220253442,-480.0,0.00030328,7]
[364724655,1749220253453,-479.37959101,0.00030328,7]
[364724657,1749220253463,-478.18121221,0.00030328,7]
[364724659,1749220253472,-480.0,0.00030328,7]
[364724660,1749220253481,-480.0,0.00030328,7]
[364724663,1749220253491,-449.63555096,0.00030328,7]
[364724665,1749220253500,-1997.23,0.00030328,7]
[364724667,1749220253510,-480.0,0.00030328,7]
[364724669,1749220253520,-151.0,0.00030328,7]
[364724671,1749220253529,-151.0,0.00030328,7]
[364724673,1749220253539,-480.0,0.00030328,7]
[364724675,1749220253548,-847.34,0.00030328,7]
[364724677,1749220253557,-151.0,0.00030328,7]
[364724679,1749220253566,-151.0,0.00030328,7]
[364724681,1749220253575,-480.0,0.00030328,7]
[364724682,1749220253584,-183.91293602,0.00030328,7]
[364724685,1749220253594,-480.0,0.00030328,7]
[364724687,1749220253603,-500.07556787,0.00030328,7]
[364724689,1749220253612,-480.0,0.00030328,7]
[364724691,1749220253622,-153.74537542,0.00030328,7]
[364724693,1749220253631,-480.0,0.00030328,7]
[364724695,1749220253639,-480.0,0.00030328,7]
[364724696,1749220253648,-151.0,0.00030328,7]
[364724699,1749220253658,-480.0,0.00030328,7]
[364724701,1749220253669,-151.0,0.00030328,7]
[364724702,1749220253678,-151.0,0.00030328,7]
[364724705,1749220253687,-510.71684663,0.00030328,7]
[364724707,1749220253696,-480.0,0.00030328,7]
[364724709,1749220253705,-480.0,0.00030328,7]
[364724711,1749220253714,-480.0,0.00030328,7]
[364724713,1749220253724,-480.0,0.00030328,7]
[364724715,1749220253733,-480.0,0.00030328,7]
[364724717,1749220253743,-480.0,0.00030328,7]
[364724719,1749220253752,-480.0,0.00030328,7]
[364724721,1749220253761,-489.29167731,0.00030328,7]
[364724723,1749220253770,-480.0,0.00030328,7]
[364724725,1749220253779,-480.0,0.00030328,7]
[364724727,1749220253789,-480.0,0.00030328,7]
[364724729,1749220253798,-151.0,0.00030328,7]
[364724731,1749220253807,-480.0,0.00030328,7]
[364724733,1749220253816,-156.86458956,0.00030328,7]
[364724735,1749220253825,-151.0,0.00030328,7]
[364724737,1749220253834,-212.153478,0.00030328,7]
[364724739,1749220253844,-557.72,0.00030328,7]
[364724741,1749220253853,-480.0,0.00030328,7]
[364724743,1749220253862,-480.0,0.00030328,7]
[364724745,1749220253871,-480.0,0.00030328,7]
[364724747,1749220253880,-480.0,0.00030328,7]
[364724749,1749220253889,-502.92530979,0.00030328,7]
[364724751,1749220253898,-681.93,0.00030328,7]
[364724753,1749220253907,-480.0,0.00030328,7]
[364724755,1749220253917,-1362.899122,0.00030328,7]
[364724757,1749220253926,-1362.899122,0.00030328,7]
[364724759,1749220253935,-151.0,0.00030328,7]
[364724761,1749220253945,-480.0,0.00030328,7]
[364724763,1749220253954,-211.66968226,0.00030328,7]
[364724771,1749220254022,-480.0,0.00030328,7]
[364724773,1749220254032,-683.06,0.00030328,7]
[364724775,1749220254041,-151.0,0.00030328,7]
[364724777,1749220254050,-480.0,0.00030328,7]
[364724779,1749220254059,-1194.15,0.00030328,7]
[364724781,1749220254068,-480.0,0.00030328,7]
[364724783,1749220254077,-224.971363,0.00030328,7]
[364724785,1749220254086,-151.0,0.00030328,7]
[364724787,1749220254095,-224.971363,0.00030328,7]
[364724789,1749220254104,-480.0,0.00030328,7]
[364724790,1749220254112,-151.0,0.00030328,7]
[364724792,1749220254122,-480.0,0.00030328,7]
[364724794,1749220254131,-504.02,0.00030328,7]
[364724796,1749220254140,-151.0,0.00030328,7]
[364724798,1749220254148,-151.0,0.00030328,7]
[364724800,1749220254158,-151.0,0.00030328,7]
[364724802,1749220254167,-151.0,0.00030328,7]
[364724804,1749220254176,-699.24,0.00030328,7]
[364724806,1749220254185,-480.0,0.00030328,7]
[364724808,1749220254195,-436.80707198,0.00030328,7]
[364724810,1749220254204,-480.0,0.00030328,7]
[364724812,1749220254214,-425.70102416,0.00030328,7]
[364724814,1749220254223,-480.0,0.00030328,7]
[364724816,1749220254232,-480.0,0.00030328,7]
[364724818,1749220254242,-480.0,0.00030328,7]
[364724820,1749220254251,-480.0,0.00030328,7]
[364724822,1749220254260,-480.0,0.00030328,7]
[364724824,1749220254270,-189.18816879,0.00030328,7]
[364724826,1749220254279,-480.0,0.00030328,7]
[364724828,1749220254288,-480.0,0.00030328,7]
[364724830,1749220254297,-498.96670728,0.00030328,7]
[364724832,1749220254307,-480.0,0.00030328,7]
[364724834,1749220254316,-480.0,0.00030328,7]
[364724836,1749220254325,-480.0,0.00030328,7]
[364724838,1749220254335,-480.0,0.00030328,7]
[364724840,1749220254344,-819.51,0.00030328,7]
[364724842,1749220254354,-480.0,0.00030328,7]
[364724844,1749220254363,-480.0,0.00030328,7]
[364724846,1749220254377,-480.0,0.00030328,7]
[364724848,1749220254387,-979.25,0.00030328,7]
[364724850,1749220254396,-613.49,0.00030328,7]
[364724852,1749220254405,-501.9987913,0.00030328,7]
[364724854,1749220254417,-480.0,0.00030328,7]
[364724856,1749220254426,-480.0,0.00030328,7]
[364724858,1749220254435,-480.0,0.00030328,7]
[364724860,1749220254445,-480.0,0.00030328,7]
[364724862,1749220254455,-1135.81,0.00030328,7]
[364724864,1749220254464,-480.0,0.00030328,7]
[364724866,1749220254474,-480.0,0.00030328,7]
[364724868,1749220254483,-504.16,0.00030328,7]
[364724870,1749220254494,-480.0,0.00030328,7]
[364724872,1749220254503,-480.0,0.00030328,7]
[364724874,1749220254513,-480.0,0.00030328,7]
[364724876,1749220254522,-480.0,0.00030328,7]
[364724878,1749220254531,-480.0,0.00030328,7]
[364724880,1749220254540,-741.75,0.00030328,7]
[364724882,1749220254549,-480.0,0.00030328,7]
[364724884,1749220254558,-480.0,0.00030328,7]
[364724886,1749220254568,-830.77,0.00030328,7]
[364724888,1749220254577,-480.0,0.00030328,7]
[364724890,1749220254586,-480.0,0.00030328,7]
[364724892,1749220254595,-480.0,0.00030328,7]
[364724894,1749220254604,-151.0,0.00030328,7]
[364724896,1749220254614,-480.0,0.00030328,7]
[364724898,1749220254623,-843.49,0.00030328,7]
[364724900,1749220254632,-480.0,0.00030328,7]
[364724902,1749220254642,-480.0,0.00030328,7]
[364724904,1749220254651,-480.0,0.00030328,7]
[364724906,1749220254660,-6539.273502,0.00030328,7]
[364724908,1749220254670,-480.0,0.00030328,7]
[364724910,1749220254678,-151.0,0.00030328,7]
[364724912,1749220254688,-151.0,0.00030328,7]
[364724914,1749220254697,-480.0,0.00030328,7]
[364724916,1749220254706,-480.0,0.00030328,7]
[364724918,1749220254715,-480.0,0.00030328,7]
[364724920,1749220254725,-480.0,0.00030328,7]
[364724922,1749220254734,-480.0,0.00030328,7]
[364724924,1749220254743,-2600.34,0.00030328,7]
[364724926,1749220254752,-480.0,0.00030328,7]
[364724928,1749220254761,-620.62,0.00030328,7]
[364724930,1749220254771,-550.34555804,0.00030328,7]
[364724932,1749220254780,-1342.16,0.00030328,7]
[364724934,1749220254789,-847.94,0.00030328,7]
[364724936,1749220254799,-675.47,0.00030328,30]
[364724938,1749220254807,-480.0,0.00030328,7]
[364724940,1749220254819,-507.4,0.00030328,7]
[364724942,1749220254828,-480.0,0.00030328,7]
[364724944,1749220254838,-545.7404718,0.00030328,7]
[364724946,1749220254847,-1057.697866,0.00030328,7]
[364724948,1749220254856,-1057.697866,0.00030328,7]
[364724950,1749220254865,-480.0,0.00030328,7]
[364724952,1749220254875,-621.25,0.00030328,7]
[364724954,1749220254884,-694.31,0.00030328,7]
[364724956,1749220254893,-1057.697866,0.00030328,7]
[364724958,1749220254902,-1057.697866,0.00030328,7]
[364724960,1749220254912,-480.0,0.00030328,7]
[364724962,1749220254922,-480.0,0.00030328,7]
[364724964,1749220254931,-480.0,0.00030328,7]
[364724966,1749220254940,-480.0,0.00030328,7]
[364724968,1749220254949,-480.0,0.00030328,7]
[364724970,1749220254958,-480.0,0.00030328,7]
[364724972,1749220254967,-495.39431166,0.00030328,7]
[364724974,1749220254976,-151.0,0.00030328,7]
[364724976,1749220254986,-516.61907621,0.00030328,7]
[364724978,1749220254995,-151.0,0.00030328,7]
[364724980,1749220255004,-151.0,0.00030328,7]
[364724982,1749220255014,-151.0,0.00030328,7]
[364724984,1749220255023,-480.0,0.00030328,7]
[364724986,1749220255032,-480.0,0.00030328,7]
[364724988,1749220255042,-346.563624,0.00030328,7]
[364724989,1749220255051,-480.0,0.00030328,7]
[364724992,1749220255062,-151.0,0.00030328,7]
[364724994,1749220255073,-151.0,0.00030328,7]
[364724996,1749220255083,-529.44,0.00030328,7]
[364724998,1749220255092,-737.4,0.00030328,7]
[364725000,1749220255101,-480.0,0.00030328,7]
[364725002,1749220255111,-151.0,0.00030328,7]
[364725004,1749220255120,-346.563624,0.00030328,7]
[364725006,1749220255129,-480.0,0.00030328,7]
[364725007,1749220255139,-480.0,0.00030328,7]
[364725008,1749220255149,-721.19,0.00030328,7]
[364725009,1749220255158,-1441.03,0.00030328,7]
[364725010,1749220255168,-480.0,0.00030328,7]
[364725011,1749220255178,-1003.2,0.00030328,7]
[364725012,1749220255187,-480.0,0.00030328,7]
[364725013,1749220255196,-480.0,0.00030328,7]
[364725014,1749220255206,-1057.7,0.00030328,7]
[364725015,1749220255216,-480.0,0.00030328,7]
[364725017,1749220255225,-428.08939245,0.00030328,7]
[364725019,1749220255234,-729.61,0.00030328,7]
[364725020,1749220255244,-480.0,0.00030328,7]
[364725022,1749220255253,-151.0,0.00030328,7]
[364725024,1749220255263,-730.84,0.00030328,7]
[364725026,1749220255272,-689.59,0.00030328,7]
[364725028,1749220255282,-480.0,0.00030328,7]
[364725030,1749220255293,-151.0,0.00030328,7]
[364725032,1749220255303,-431.09657841,0.00030328,7]
[364725034,1749220255313,-1560.79,0.00030328,7]
[364725036,1749220255322,-480.0,0.00030328,7]
[364725038,1749220255332,-480.0,0.00030328,7]
[364725040,1749220255341,-1787.56,0.00030328,7]
[364725042,1749220255350,-1063.57,0.00030328,7]
[364725044,1749220255361,-775.63,0.00030328,7]
[364725046,1749220255378,-1536.34,0.00030328,7]
[364725048,1749220255387,-151.0,0.00030328,7]
[364725049,1749220255397,-151.0,0.00030328,7]
[364725050,1749220255407,-480.0,0.00030328,7]
[364725051,1749220255420,-151.0,0.00030328,7]
[364725052,1749220255431,-480.0,0.00030328,7]
[364725053,1749220255441,-480.0,0.00030328,7]
[364725054,1749220255455,-1206.52,0.00030328,7]
[364725055,1749220255465,-480.0,0.00030328,7]
[364725056,1749220255474,-480.0,0.00030328,7]
[364725058,1749220255483,-480.0,0.00030328,7]
[364725060,1749220255493,-540.11261806,0.00030328,7]
[364725061,1749220255502,-608.45,0.00030328,7]
[364725062,1749220255511,-490.12,0.00030328,7]
[364725063,1749220255521,-480.0,0.00030328,7]
[364725064,1749220255530,-2050.82958828,0.00030328,7]
[364725065,1749220255540,-480.0,0.00030328,7]
[364725066,1749220255549,-920.1,0.00030328,7]
[364725067,1749220255564,-480.0,0.00030328,7]
[364725068,1749220255575,-480.0,0.00030328,7]
[364725069,1749220255584,-480.0,0.00030328,7]
[364725070,1749220255595,-480.0,0.00030328,7]
[364725071,1749220255604,-1792.16,0.00030328,7]
[364725073,1749220255613,-862.41,0.00030328,7]
[364725074,1749220255623,-490.39,0.00030328,7]
[364725075,1749220255632,-151.0,0.00030328,7]
[364725076,1749220255641,-480.0,0.00030328,7]
[364725077,1749220255651,-480.0,0.00030328,7]
[364725078,1749220255660,-1262.12,0.00030328,7]
[364725079,1749220255670,-480.0,0.00030328,7]
[364725080,1749220255679,-1912.2,0.00030328,7]
[364725081,1749220255688,-480.0,0.00030328,7]
[364725082,1749220255698,-480.0,0.00030328,7]
[364725083,1749220255708,-480.0,0.00030328,7]
[364725084,1749220255717,-464.51833938,0.00030328,7]
[364725085,1749220255726,-151.0,0.00030328,7]
[364725086,1749220255735,-480.0,0.00030328,7]
[364725087,1749220255745,-789.07,0.00030328,7]
[364725088,1749220255754,-480.0,0.00030328,7]
[364725089,1749220255763,-480.0,0.00030328,7]
[364725090,1749220255773,-480.0,0.00030328,7]
[364725091,1749220255782,-486.86,0.00030328,7]
[364725093,1749220255792,-480.0,0.00030328,7]
[364725096,1749220255801,-480.0,0.00030328,7]
[364725098,1749220255811,-1009.26,0.00030328,7]
[364725100,1749220255820,-480.0,0.00030328,7]
[364725102,1749220255829,-480.0,0.00030328,7]
[364725104,1749220255838,-1163.93,0.00030328,7]
[364725106,1749220255847,-1438.84,0.00030328,7]
[364725107,1749220255857,-480.0,0.00030328,7]
[364725110,1749220255867,-480.0,0.00030328,7]
[364725112,1749220255876,-480.0,0.00030328,7]
[364725113,1749220255886,-480.0,0.00030328,7]
[364725116,1749220255897,-597.43,0.00030328,7]
[364725118,1749220255907,-480.0,0.00030328,7]
[364725120,1749220255917,-480.0,0.00030328,7]
[364725121,1749220255927,-1570.73,0.00030328,7]
[364725124,1749220255937,-480.0,0.00030328,7]
[364725125,1749220255946,-480.0,0.00030328,7]
[364725128,1749220255955,-480.0,0.00030328,7]
[364725130,1749220255964,-480.0,0.00030328,7]
[364725131,1749220255973,-528.17,0.00030328,7]
[364725133,1749220255983,-480.0,0.00030328,7]
[364725134,1749220255992,-761.22,0.00030328,7]
[364725135,1749220256001,-480.0,0.00030328,7]
[364725137,1749220256010,-480.0,0.00030328,7]
[364725138,1749220256019,-1220.04,0.00030328,7]
[364725139,1749220256028,-480.0,0.00030328,7]
[364725140,1749220256038,-600.0,0.00030328,2]
[364725142,1749220256047,-1362.42,0.00030328,7]
[364725144,1749220256056,-480.0,0.00030328,7]
[364725145,1749220256066,-165.885412,0.00030328,7]
[364725146,1749220256075,-165.885412,0.00030328,7]
[364725147,1749220256084,-1000.0,0.00030328,7]
[364725148,1749220256093,-480.0,0.00030328,7]
[364725149,1749220256102,-480.0,0.00030328,7]
[364725150,1749220256111,-1189.05,0.00030328,7]
[364725151,1749220256120,-151.0,0.00030328,7]
[364725152,1749220256129,-480.0,0.00030328,7]
[364725153,1749220256138,-296.887823,0.00030328,7]
[364725154,1749220256147,-296.887823,0.00030328,7]
[364725155,1749220256156,-985.5,0.00030328,7]
[364725156,1749220256166,-480.0,0.00030328,7]
[364725157,1749220256175,-820.31,0.00030328,7]
[364725158,1749220256185,-572.01,0.00030328,7]
[364725159,1749220256194,-381.543116,0.00030328,7]
[364725160,1749220256203,-381.543116,0.00030328,7]
[364725161,1749220256213,-500.0,0.00030328,7]
[364725162,1749220256222,-1807.04,0.00030328,7]
[364725163,1749220256231,-1262.79,0.00030328,7]
[364725164,1749220256240,-472.80846861,0.00030328,7]
[364725165,1749220256250,-381.543116,0.00030328,7]
[364725166,1749220256259,-381.543116,0.00030328,7]
[364725167,1749220256268,-2516.73,0.00030328,7]
[364725168,1749220256278,-480.0,0.00030328,7]
[364725170,1749220256287,-778.34,0.00030328,7]
[364725171,1749220256296,-480.0,0.00030328,7]